[Event "Live Chess"]
[Site "Chess.com"]
[Date "2024.06.02"]
[Round "-"]
[White "gobbles19"]
[Black "TigerTank70"]
[Result "1/2-1/2"]
[WhiteElo "2241"]
[BlackElo "2208"]
[TimeControl "300"]
[EndTime "6:13:57 PDT"]
[Termination "Game drawn by repetition"]

1. e4 {[%clk 0:04:58.5]} 1... e5 {[%clk 0:04:59.1]} 2. d4 {[%clk 0:04:57.2]}
2... exd4 {[%clk 0:04:57.9]} 3. c3 {[%clk 0:04:56.9]} 3... d3 {[%clk 0:04:56.8]}
4. Bxd3 {[%clk 0:04:55.6]} 4... Nc6 {[%clk 0:04:56.7]} 5. Nf3 {[%clk 0:04:54.4]}
5... d6 {[%clk 0:04:50.9]} 6. h3 {[%clk 0:04:51.7]} 6... Be7 {[%clk 0:04:50.2]}
7. O-O {[%clk 0:04:50]} 7... Bf6 {[%clk 0:04:49.5]} 8. c4 {[%clk 0:04:44.9]}
8... Nge7 {[%clk 0:04:44.2]} 9. Nc3 {[%clk 0:04:43.8]} 9... O-O {[%clk
0:04:42.1]} 10. Be3 {[%clk 0:04:39.1]} 10... Be6 {[%clk 0:04:34]} 11. Rc1 {[%clk
0:04:37.1]} 11... Ng6 {[%clk 0:04:23]} 12. Be2 {[%clk 0:04:03.9]} 12... Nge5
{[%clk 0:04:04.5]} 13. Nxe5 {[%clk 0:04:01.4]} 13... dxe5 {[%clk 0:04:00.4]} 14.
Nd5 {[%clk 0:03:58.6]} 14... Bxd5 {[%clk 0:03:53.7]} 15. exd5 {[%clk 0:03:51.4]}
15... Ne7 {[%clk 0:03:48.5]} 16. Bd3 {[%clk 0:03:47.7]} 16... Ng6 {[%clk
0:03:45.9]} 17. Re1 {[%clk 0:03:38.5]} 17... Re8 {[%clk 0:03:42.2]} 18. Be4
{[%clk 0:03:35.6]} 18... Bg5 {[%clk 0:03:31.6]} 19. Rc3 {[%clk 0:03:26.7]} 19...
Bf4 {[%clk 0:03:25.9]} 20. Qg4 {[%clk 0:03:14.9]} 20... Qd6 {[%clk 0:03:13.3]}
21. c5 {[%clk 0:03:06.5]} 21... Qf6 {[%clk 0:03:05.7]} 22. Rb3 {[%clk 0:02:54]}
22... Rab8 {[%clk 0:02:58.7]} 23. Bxg6 {[%clk 0:02:25.4]} 23... hxg6 {[%clk
0:02:55.7]} 24. Bxf4 {[%clk 0:02:23.6]} 24... exf4 {[%clk 0:02:36.9]} 25. Rxe8+
{[%clk 0:02:20.5]} 25... Rxe8 {[%clk 0:02:35.4]} 26. Rxb7 {[%clk 0:02:18.5]}
26... Qd4 {[%clk 0:02:32]} 27. Rxc7 {[%clk 0:01:49.3]} 27... Qxd5 {[%clk
0:02:25]} 28. Qxf4 {[%clk 0:01:41]} 28... g5 {[%clk 0:02:13.7]} 29. Qg3 {[%clk
0:01:32.2]} 29... Qxa2 {[%clk 0:02:03.1]} 30. Qxg5 {[%clk 0:01:07.9]} 30... Qxb2
{[%clk 0:01:54]} 31. Rxa7 {[%clk 0:01:06.1]} 31... Qb1+ {[%clk 0:01:39.7]} 32.
Kh2 {[%clk 0:01:05.1]} 32... Qc2 {[%clk 0:01:35.8]} 33. Qf4 {[%clk 0:01:01.2]}
33... Rf8 {[%clk 0:01:24]} 34. Ra3 {[%clk 0:00:52.9]} 34... Qxc5 {[%clk
0:01:19]} 35. Rg3 {[%clk 0:00:51.8]} 35... Qc6 {[%clk 0:01:13.6]} 36. Qg5 {[%clk
0:00:48.4]} 36... g6 {[%clk 0:01:11]} 37. h4 {[%clk 0:00:46.2]} 37... Kg7 {[%clk
0:00:58.1]} 38. Qe5+ {[%clk 0:00:36.6]} 38... Qf6 {[%clk 0:00:56.7]} 39. Qxf6+
{[%clk 0:00:34.2]} 39... Kxf6 {[%clk 0:00:56.6]} 40. Rb3 {[%clk 0:00:32.3]}
40... Rh8 {[%clk 0:00:54.8]} 41. g3 {[%clk 0:00:27.5]} 41... g5 {[%clk 0:00:49]}
42. Rb4 {[%clk 0:00:27]} 42... Kg6 {[%clk 0:00:46.3]} 43. Kh3 {[%clk 0:00:26.3]}
43... f6 {[%clk 0:00:44.9]} 44. f3 {[%clk 0:00:25]} 44... Rh7 {[%clk 0:00:43.8]}
45. Kg2 {[%clk 0:00:22.6]} 45... gxh4 {[%clk 0:00:39.2]} 46. Rxh4 {[%clk
0:00:19.9]} 46... Ra7 {[%clk 0:00:37.9]} 47. Re4 {[%clk 0:00:19.1]} 47... Ra2+
{[%clk 0:00:34.8]} 48. Kh3 {[%clk 0:00:18.5]} 48... Ra1 {[%clk 0:00:33.6]} 49.
f4 {[%clk 0:00:16.4]} 49... Rh1+ {[%clk 0:00:31.6]} 50. Kg2 {[%clk 0:00:15.9]}
50... Ra1 {[%clk 0:00:30.6]} 51. Re2 {[%clk 0:00:15.5]} 51... Ra3 {[%clk
0:00:29.1]} 52. Rf2 {[%clk 0:00:15.4]} 52... Ra4 {[%clk 0:00:27.6]} 53. Rf3
{[%clk 0:00:15.1]} 53... Ra2+ {[%clk 0:00:26.6]} 54. Rf2 {[%clk 0:00:15]} 54...
Ra1 {[%clk 0:00:26]} 55. Rf3 {[%clk 0:00:14.9]} 55... Ra2+ {[%clk 0:00:25.4]}
56. Rf2 {[%clk 0:00:14.8]} 56... Ra1 {[%clk 0:00:24.8]} 57. Rf3 {[%clk
0:00:14.7]} 57... Ra2+ {[%clk 0:00:24.1]} 1/2-1/2

[Event "Live Chess"]
[Site "Chess.com"]
[Date "2024.06.02"]
[Round "-"]
[White "resipsa6"]
[Black "Mary_cool"]
[Result "1-0"]
[WhiteElo "2018"]
[BlackElo "1953"]
[TimeControl "300"]
[EndTime "6:14:05 PDT"]
[Termination "resipsa6 won on time"]

1. e4 {[%clk 0:04:58.8]} 1... c5 {[%clk 0:04:59.1]} 2. Nf3 {[%clk 0:04:57.4]}
2... Nc6 {[%clk 0:04:58.1]} 3. d4 {[%clk 0:04:56.9]} 3... cxd4 {[%clk
0:04:56.8]} 4. Nxd4 {[%clk 0:04:56.4]} 4... Nf6 {[%clk 0:04:56.2]} 5. Nxc6
{[%clk 0:04:55.5]} 5... bxc6 {[%clk 0:04:48.5]} 6. Nc3 {[%clk 0:04:54.8]} 6...
g6 {[%clk 0:04:39.5]} 7. e5 {[%clk 0:04:49.9]} 7... Ng8 {[%clk 0:04:26.5]} 8. f4
{[%clk 0:04:47.9]} 8... Bg7 {[%clk 0:04:22.6]} 9. Bc4 {[%clk 0:04:46.8]} 9...
Nh6 {[%clk 0:04:11.2]} 10. g4 {[%clk 0:04:42.1]} 10... O-O {[%clk 0:04:05.9]}
11. f5 {[%clk 0:04:32.8]} 11... gxf5 {[%clk 0:04:02.8]} 12. gxf5 {[%clk
0:04:32.1]} 12... Nxf5 {[%clk 0:04:00.8]} 13. Qg4 {[%clk 0:04:30]} 13... d5
{[%clk 0:03:56.7]} 14. Bd3 {[%clk 0:04:22.9]} 14... Kh8 {[%clk 0:03:16.4]} 15.
Bxf5 {[%clk 0:04:20.4]} 15... d4 {[%clk 0:03:06.2]} 16. Rg1 {[%clk 0:04:15.3]}
16... Rg8 {[%clk 0:02:57]} 17. Ne4 {[%clk 0:03:40.6]} 17... Qa5+ {[%clk
0:02:43.8]} 18. Bd2 {[%clk 0:03:34.9]} 18... Qxe5 {[%clk 0:02:41.9]} 19. Bxc8
{[%clk 0:03:09.3]} 19... Raxc8 {[%clk 0:02:40.3]} 20. O-O-O {[%clk 0:02:52.9]}
20... Bh6 {[%clk 0:01:56.6]} 21. Qe2 {[%clk 0:01:10.2]} 21... Bxd2+ {[%clk
0:01:45.7]} 22. Kxd2 {[%clk 0:01:08.1]} 22... Qf4+ {[%clk 0:01:34.5]} 23. Kd3
{[%clk 0:01:07]} 23... c5 {[%clk 0:01:26.6]} 24. Rxg8+ {[%clk 0:00:52.4]} 24...
Kxg8 {[%clk 0:01:19.2]} 25. Rg1+ {[%clk 0:00:43.8]} 25... Kh8 {[%clk 0:01:18.4]}
26. Qg4 {[%clk 0:00:42.2]} 26... c4+ {[%clk 0:01:04.2]} 27. Ke2 {[%clk
0:00:38.8]} 27... Qxg4+ {[%clk 0:00:54.4]} 28. Rxg4 {[%clk 0:00:36.5]} 28... f5
{[%clk 0:00:53.6]} 29. Rf4 {[%clk 0:00:27.6]} 29... fxe4 {[%clk 0:00:51.8]} 30.
Rxe4 {[%clk 0:00:27.5]} 30... c3 {[%clk 0:00:48.2]} 31. bxc3 {[%clk 0:00:23.6]}
31... Rxc3 {[%clk 0:00:47]} 32. Kd2 {[%clk 0:00:20.2]} 32... Ra3 {[%clk
0:00:34.7]} 33. Rxe7 {[%clk 0:00:19.2]} 33... Rxa2 {[%clk 0:00:34.1]} 34. Rd7
{[%clk 0:00:18.5]} 34... a5 {[%clk 0:00:27.8]} 35. Kd3 {[%clk 0:00:17.8]} 35...
a4 {[%clk 0:00:26.2]} 36. Rxd4 {[%clk 0:00:16.8]} 36... a3 {[%clk 0:00:17]} 37.
Ra4 {[%clk 0:00:16.2]} 37... Ra1 {[%clk 0:00:16.1]} 38. Kc3 {[%clk 0:00:15.7]}
38... a2 {[%clk 0:00:14.6]} 39. Kb2 {[%clk 0:00:15.1]} 39... Rh1 {[%clk
0:00:13.5]} 40. Kxa2 {[%clk 0:00:14.4]} 40... Rxh2 {[%clk 0:00:11.7]} 41. Kb3
{[%clk 0:00:13.9]} 41... h5 {[%clk 0:00:09.6]} 42. Ra7 {[%clk 0:00:13.3]} 42...
h4 {[%clk 0:00:08.4]} 43. c4 {[%clk 0:00:12.4]} 43... h3 {[%clk 0:00:06.6]} 44.
c5 {[%clk 0:00:12]} 44... Rh1 {[%clk 0:00:05.6]} 45. Kb2 {[%clk 0:00:10.6]}
45... h2 {[%clk 0:00:02.2]} 46. c6 {[%clk 0:00:09.2]} 1-0

[Event "Live Chess"]
[Site "Chess.com"]
[Date "2024.06.02"]
[Round "-"]
[White "Konovka_Ukraine"]
[Black "degringolade64"]
[Result "1-0"]
[WhiteElo "1769"]
[BlackElo "2106"]
[TimeControl "300"]
[EndTime "6:14:15 PDT"]
[Termination "Konovka_Ukraine won by resignation"]

1. b4 {[%clk 0:04:51.4]} 1... e5 {[%clk 0:04:58]} 2. Bb2 {[%clk 0:04:50.5]} 2...
Bxb4 {[%clk 0:04:54.6]} 3. Bxe5 {[%clk 0:04:49.2]} 3... Nf6 {[%clk 0:04:54.2]}
4. Nc3 {[%clk 0:04:47.7]} 4... O-O {[%clk 0:04:51.9]} 5. Nf3 {[%clk 0:04:46.4]}
5... Re8 {[%clk 0:04:48]} 6. Bxf6 {[%clk 0:04:41.7]} 6... Qxf6 {[%clk
0:04:46.4]} 7. Nd5 {[%clk 0:04:41]} 7... Qd6 {[%clk 0:04:18.3]} 8. Nxb4 {[%clk
0:04:36.5]} 8... Qxb4 {[%clk 0:04:18.2]} 9. e3 {[%clk 0:04:35.5]} 9... d5 {[%clk
0:04:13.7]} 10. Be2 {[%clk 0:04:34.7]} 10... c5 {[%clk 0:04:05.4]} 11. c3 {[%clk
0:04:33.1]} 11... Qg4 {[%clk 0:03:59.6]} 12. O-O {[%clk 0:04:33]} 12... Qg6
{[%clk 0:03:48]} 13. d4 {[%clk 0:04:30.1]} 13... c4 {[%clk 0:03:44.2]} 14. g3
{[%clk 0:04:24.1]} 14... Bh3 {[%clk 0:03:37]} 15. Re1 {[%clk 0:04:21]} 15... Nc6
{[%clk 0:03:36.5]} 16. Nh4 {[%clk 0:04:12.9]} 16... Qe6 {[%clk 0:03:28.9]} 17.
Bf3 {[%clk 0:04:08.3]} 17... g5 {[%clk 0:03:02.5]} 18. Ng2 {[%clk 0:03:57.9]}
18... Qf5 {[%clk 0:02:52.6]} 19. g4 {[%clk 0:03:46.8]} 19... Qd7 {[%clk
0:02:38]} 20. Rb1 {[%clk 0:03:35.2]} 20... Re6 {[%clk 0:02:18.9]} 21. Re2 {[%clk
0:03:23.5]} 21... Bxg2 {[%clk 0:02:16.6]} 22. Kxg2 {[%clk 0:03:17.3]} 22... Ne7
{[%clk 0:02:15.8]} 23. Reb2 {[%clk 0:03:13.8]} 23... b6 {[%clk 0:02:13.5]} 24.
h3 {[%clk 0:03:10.1]} 24... Ng6 {[%clk 0:02:12.4]} 25. Rb5 {[%clk 0:02:56]}
25... Rd6 {[%clk 0:01:55.5]} 26. a4 {[%clk 0:02:41.3]} 26... Rf8 {[%clk
0:01:46.8]} 27. a5 {[%clk 0:02:34.9]} 27... f5 {[%clk 0:01:37.6]} 28. axb6
{[%clk 0:02:11.7]} 28... axb6 {[%clk 0:01:20.5]} 29. Rxb6 {[%clk 0:02:06.4]}
29... Rxb6 {[%clk 0:01:19.9]} 30. Rxb6 {[%clk 0:02:05.1]} 30... Nh4+ {[%clk
0:01:17.7]} 31. Kg1 {[%clk 0:02:01.3]} 31... Qf7 {[%clk 0:00:47.7]} 32. Rb5
{[%clk 0:01:51.5]} 32... Nxf3+ {[%clk 0:00:40.7]} 33. Qxf3 {[%clk 0:01:51.4]}
33... fxg4 {[%clk 0:00:39.9]} 34. Qxd5 {[%clk 0:01:49.9]} 34... gxh3 {[%clk
0:00:35.2]} 35. Qxg5+ {[%clk 0:01:44.5]} 35... Kh8 {[%clk 0:00:33]} 36. Qe5+
{[%clk 0:01:38.8]} 36... Kg8 {[%clk 0:00:27.3]} 37. Qg3+ {[%clk 0:01:30.1]}
37... Kh8 {[%clk 0:00:25.1]} 38. Rg5 {[%clk 0:01:27.5]} 38... Ra8 {[%clk
0:00:17.7]} 39. Qe5+ {[%clk 0:01:25.4]} 1-0

[Event "Live Chess"]
[Site "Chess.com"]
[Date "2024.06.02"]
[Round "-"]
[White "RichardABates"]
[Black "CarmelJane"]
[Result "1-0"]
[WhiteElo "2346"]
[BlackElo "1986"]
[TimeControl "300"]
[EndTime "6:14:15 PDT"]
[Termination "RichardABates won by resignation"]

1. d4 {[%clk 0:04:57.6]} 1... g6 {[%clk 0:04:59.9]} 2. e4 {[%clk 0:04:55.6]}
2... Bg7 {[%clk 0:04:59.8]} 3. Nf3 {[%clk 0:04:54.1]} 3... c5 {[%clk 0:04:59.1]}
4. d5 {[%clk 0:04:52.3]} 4... a6 {[%clk 0:04:55.3]} 5. Be2 {[%clk 0:04:48.7]}
5... b5 {[%clk 0:04:52]} 6. O-O {[%clk 0:04:47]} 6... d6 {[%clk 0:04:51.4]} 7.
a4 {[%clk 0:04:44.7]} 7... b4 {[%clk 0:04:42.8]} 8. Nbd2 {[%clk 0:04:42.8]} 8...
Nd7 {[%clk 0:04:40.2]} 9. a5 {[%clk 0:04:41.3]} 9... Ngf6 {[%clk 0:04:39]} 10.
Re1 {[%clk 0:04:37.9]} 10... O-O {[%clk 0:04:37.7]} 11. Bf1 {[%clk 0:04:36.2]}
11... e6 {[%clk 0:04:35.1]} 12. dxe6 {[%clk 0:04:33.3]} 12... fxe6 {[%clk
0:04:35]} 13. Nc4 {[%clk 0:04:31.8]} 13... d5 {[%clk 0:04:31.1]} 14. exd5 {[%clk
0:04:30.1]} 14... exd5 {[%clk 0:04:31]} 15. Nd6 {[%clk 0:04:28.6]} 15... Nh5
{[%clk 0:04:00.6]} 16. Qxd5+ {[%clk 0:04:26.2]} 16... Kh8 {[%clk 0:03:58.9]} 17.
Qxa8 {[%clk 0:04:22.5]} 17... Qc7 {[%clk 0:03:41.8]} 18. Nxc8 {[%clk 0:04:04.4]}
18... Rxc8 {[%clk 0:03:41.7]} 19. Qxa6 {[%clk 0:03:58.3]} 19... Ndf6 {[%clk
0:03:23.7]} 20. Qe6 {[%clk 0:03:49.1]} 1-0

[Event "Live Chess"]
[Site "Chess.com"]
[Date "2024.06.02"]
[Round "-"]
[White "Crowded_House"]
[Black "seasidecastle27"]
[Result "0-1"]
[WhiteElo "1625"]
[BlackElo "1946"]
[TimeControl "300"]
[EndTime "6:14:19 PDT"]
[Termination "seasidecastle27 won by resignation"]

1. d4 {[%clk 0:04:58.5]} 1... e6 {[%clk 0:04:58.5]} 2. Nf3 {[%clk 0:04:55.7]}
2... d5 {[%clk 0:04:57.3]} 3. Bg5 {[%clk 0:04:55.1]} 3... Be7 {[%clk 0:04:56]}
4. Bxe7 {[%clk 0:04:54.7]} 4... Qxe7 {[%clk 0:04:55.3]} 5. e3 {[%clk 0:04:54.2]}
5... Qb4+ {[%clk 0:04:52.9]} 6. Nbd2 {[%clk 0:04:37.6]} 6... Qxb2 {[%clk
0:04:51]} 7. Qb1 {[%clk 0:04:26.3]} 7... Qxb1+ {[%clk 0:04:49.7]} 8. Rxb1 {[%clk
0:04:25.1]} 8... Nd7 {[%clk 0:04:47.8]} 9. Bd3 {[%clk 0:04:21.9]} 9... Ngf6
{[%clk 0:04:44.4]} 10. O-O {[%clk 0:04:18.9]} 10... O-O {[%clk 0:04:42.8]} 11.
c4 {[%clk 0:04:16.5]} 11... dxc4 {[%clk 0:04:37.2]} 12. Nxc4 {[%clk 0:04:13]}
12... b6 {[%clk 0:04:36.2]} 13. Rfc1 {[%clk 0:04:07.5]} 13... Ba6 {[%clk
0:04:31.9]} 14. Nce5 {[%clk 0:03:58.5]} 14... Bxd3 {[%clk 0:04:29.7]} 15. Nxd3
{[%clk 0:03:57.2]} 15... Rfc8 {[%clk 0:04:22.6]} 16. Rc6 {[%clk 0:03:53.3]}
16... Nb8 {[%clk 0:04:04.7]} 17. Rc2 {[%clk 0:03:47.7]} 17... Nfd7 {[%clk
0:03:57.9]} 18. Rbc1 {[%clk 0:03:45]} 18... Na6 {[%clk 0:03:52.2]} 19. Nfe5
{[%clk 0:03:42.6]} 19... Nxe5 {[%clk 0:03:49]} 20. Nxe5 {[%clk 0:03:41.6]} 20...
c5 {[%clk 0:03:47]} 21. dxc5 {[%clk 0:03:39.7]} 21... Rxc5 {[%clk 0:03:45.3]}
22. Rxc5 {[%clk 0:03:38]} 22... Nxc5 {[%clk 0:03:42.7]} 23. Rd1 {[%clk
0:03:27.2]} 23... Kf8 {[%clk 0:03:39]} 24. Nd7+ {[%clk 0:03:25.1]} 24... Nxd7
{[%clk 0:03:36.3]} 25. Rxd7 {[%clk 0:03:24.7]} 25... Ke8 {[%clk 0:03:32]} 26.
Rb7 {[%clk 0:03:23.4]} 26... Rd8 {[%clk 0:03:28.5]} 27. g3 {[%clk 0:03:15.9]}
27... Rd7 {[%clk 0:03:26.8]} 28. Rb8+ {[%clk 0:03:13.1]} 28... Ke7 {[%clk
0:03:25.7]} 29. Kg2 {[%clk 0:03:05.8]} 29... h5 {[%clk 0:03:24.1]} 30. h3 {[%clk
0:03:03.6]} 30... g6 {[%clk 0:03:22.8]} 31. Kf3 {[%clk 0:02:58.5]} 31... Kd6
{[%clk 0:03:20.6]} 32. Kf4 {[%clk 0:02:52.3]} 32... Kc6 {[%clk 0:03:13.7]} 33.
g4 {[%clk 0:02:48.7]} 33... hxg4 {[%clk 0:03:11.8]} 34. hxg4 {[%clk 0:02:47.5]}
34... a5 {[%clk 0:03:06.4]} 35. Ke5 {[%clk 0:02:33.7]} 35... b5 {[%clk
0:03:00.3]} 36. Rc8+ {[%clk 0:02:29.2]} 36... Kb7 {[%clk 0:02:54.9]} 37. Rc2
{[%clk 0:02:24.4]} 37... b4 {[%clk 0:02:48.5]} 38. f4 {[%clk 0:02:22.1]} 38...
Kb6 {[%clk 0:02:44.9]} 39. e4 {[%clk 0:02:18]} 39... a4 {[%clk 0:02:43.5]} 40.
f5 {[%clk 0:02:16.4]} 40... gxf5 {[%clk 0:02:41.9]} 41. gxf5 {[%clk 0:02:15.4]}
41... exf5 {[%clk 0:02:40.7]} 42. Kxf5 {[%clk 0:02:13.2]} 42... Kb5 {[%clk
0:02:38.3]} 43. e5 {[%clk 0:02:04.9]} 43... b3 {[%clk 0:02:36.5]} 44. axb3
{[%clk 0:02:02.6]} 44... axb3 {[%clk 0:02:35.4]} 45. Rb2 {[%clk 0:01:56.8]}
45... Kb4 {[%clk 0:02:34.3]} 46. e6 {[%clk 0:01:56]} 46... fxe6+ {[%clk
0:02:32.8]} 47. Kxe6 {[%clk 0:01:55.3]} 47... Rd3 {[%clk 0:02:30.3]} 48. Ke5
{[%clk 0:01:49.4]} 48... Kc3 {[%clk 0:02:28.8]} 49. Rb1 {[%clk 0:01:48.1]} 49...
Kc2 {[%clk 0:02:27.3]} 50. Rh1 {[%clk 0:01:45.9]} 50... b2 {[%clk 0:02:26.3]}
51. Rh2+ {[%clk 0:01:44.7]} 51... Rd2 {[%clk 0:02:24.9]} 52. Rxd2+ {[%clk
0:01:39.3]} 52... Kxd2 {[%clk 0:02:23.6]} 0-1

[Event "Live Chess"]
[Site "Chess.com"]
[Date "2024.06.02"]
[Round "-"]
[White "Ninifu"]
[Black "TheSmoulderingMaster"]
[Result "1-0"]
[WhiteElo "2010"]
[BlackElo "1759"]
[TimeControl "300"]
[EndTime "6:14:44 PDT"]
[Termination "Ninifu won by resignation"]

1. d4 {[%clk 0:04:54.3]} 1... Nf6 {[%clk 0:04:58.8]} 2. c4 {[%clk 0:04:53.1]}
2... d6 {[%clk 0:04:58]} 3. Nc3 {[%clk 0:04:51.9]} 3... g6 {[%clk 0:04:57.2]} 4.
e4 {[%clk 0:04:51.3]} 4... Bg7 {[%clk 0:04:56]} 5. f4 {[%clk 0:04:50.8]} 5...
O-O {[%clk 0:04:55.2]} 6. Nf3 {[%clk 0:04:50.2]} 6... c6 {[%clk 0:04:53.6]} 7.
Bd3 {[%clk 0:04:47.8]} 7... Bg4 {[%clk 0:04:52.6]} 8. Be3 {[%clk 0:04:43.3]}
8... Nbd7 {[%clk 0:04:51.3]} 9. e5 {[%clk 0:04:40]} 9... dxe5 {[%clk 0:04:49.6]}
10. dxe5 {[%clk 0:04:39.2]} 10... Nh5 {[%clk 0:04:47.7]} 11. Be2 {[%clk
0:04:34.3]} 11... e6 {[%clk 0:04:46.8]} 12. Qd2 {[%clk 0:04:26.7]} 12... Bh6
{[%clk 0:04:42.7]} 13. Rd1 {[%clk 0:04:14.1]} 13... Nb6 {[%clk 0:04:37.7]} 14.
Qc1 {[%clk 0:03:25.1]} 14... Qe7 {[%clk 0:04:31.5]} 15. O-O {[%clk 0:03:23.4]}
15... Ng7 {[%clk 0:04:29.5]} 16. Ne4 {[%clk 0:03:17.4]} 16... Nf5 {[%clk
0:04:27.1]} 17. Nf6+ {[%clk 0:03:05.1]} 17... Kh8 {[%clk 0:04:26]} 18. Nxg4
{[%clk 0:03:04.3]} 18... Nxe3 {[%clk 0:04:22]} 19. Qxe3 {[%clk 0:03:03.3]} 19...
Qb4 {[%clk 0:04:18.5]} 20. Nxh6 {[%clk 0:02:58.6]} 20... Qxb2 {[%clk 0:04:15.8]}
21. Ng5 {[%clk 0:02:30.5]} 21... Qxa2 {[%clk 0:04:12.2]} 22. Qh3 {[%clk
0:02:24]} 22... Kg7 {[%clk 0:04:07.6]} 23. Nhxf7 {[%clk 0:02:19.7]} 23... Rxf7
{[%clk 0:04:05.2]} 24. Qxh7+ {[%clk 0:02:18.2]} 1-0

[Event "Live Chess"]
[Site "Chess.com"]
[Date "2024.06.02"]
[Round "-"]
[White "gmnorfolk"]
[Black "oscalik"]
[Result "0-1"]
[WhiteElo "2148"]
[BlackElo "2239"]
[TimeControl "300"]
[EndTime "6:14:48 PDT"]
[Termination "oscalik won by resignation"]

1. c4 {[%clk 0:04:57.3]} 1... Nf6 {[%clk 0:04:58]} 2. Nc3 {[%clk 0:04:55.2]}
2... c5 {[%clk 0:04:56.6]} 3. Nf3 {[%clk 0:04:49.2]} 3... Nc6 {[%clk 0:04:55.1]}
4. d4 {[%clk 0:04:46.5]} 4... cxd4 {[%clk 0:04:53.7]} 5. Nxd4 {[%clk 0:04:44.3]}
5... e5 {[%clk 0:04:53]} 6. Ndb5 {[%clk 0:04:42.5]} 6... d6 {[%clk 0:04:51.9]}
7. Bg5 {[%clk 0:04:41.3]} 7... a6 {[%clk 0:04:48.3]} 8. Bxf6 {[%clk 0:04:39.6]}
8... gxf6 {[%clk 0:04:48.2]} 9. Na3 {[%clk 0:04:37.4]} 9... Be6 {[%clk 0:04:47]}
10. g3 {[%clk 0:04:34.3]} 10... Rc8 {[%clk 0:04:45.7]} 11. Bg2 {[%clk
0:04:32.7]} 11... f5 {[%clk 0:04:45.2]} 12. O-O {[%clk 0:04:30.5]} 12... Bg7
{[%clk 0:04:44.5]} 13. Nd5 {[%clk 0:04:26.4]} 13... e4 {[%clk 0:04:39.3]} 14.
Rb1 {[%clk 0:04:20.5]} 14... h5 {[%clk 0:04:36.7]} 15. Nc2 {[%clk 0:04:13.1]}
15... h4 {[%clk 0:04:34.9]} 16. Nce3 {[%clk 0:04:11.6]} 16... hxg3 {[%clk
0:04:30.3]} 17. fxg3 {[%clk 0:04:08.2]} 17... Qg5 {[%clk 0:04:24.9]} 18. Nf4
{[%clk 0:04:01.1]} 18... Bd4 {[%clk 0:04:19.4]} 19. Qd2 {[%clk 0:03:55.2]} 19...
Ke7 {[%clk 0:04:04.9]} 20. Nxe6 {[%clk 0:03:43.9]} 20... Bxe3+ {[%clk
0:04:00.5]} 21. Kh1 {[%clk 0:03:38]} 21... fxe6 {[%clk 0:03:51.2]} 0-1

[Event "Live Chess"]
[Site "Chess.com"]
[Date "2024.06.02"]
[Round "-"]
[White "IgorSchukin"]
[Black "CheckThis4"]
[Result "0-1"]
[WhiteElo "1786"]
[BlackElo "2685"]
[TimeControl "300"]
[EndTime "6:15:02 PDT"]
[Termination "CheckThis4 won by resignation"]

1. e4 {[%clk 0:04:58.2]} 1... c5 {[%clk 0:04:57]} 2. a3 {[%clk 0:04:56.8]} 2...
g6 {[%clk 0:04:55.3]} 3. Nc3 {[%clk 0:04:55.7]} 3... Bg7 {[%clk 0:04:54.3]} 4.
Bc4 {[%clk 0:04:55.3]} 4... Nc6 {[%clk 0:04:50.2]} 5. d3 {[%clk 0:04:54.7]} 5...
e6 {[%clk 0:04:47.9]} 6. h4 {[%clk 0:04:53.4]} 6... Nf6 {[%clk 0:04:35.3]} 7. h5
{[%clk 0:04:51]} 7... Nxh5 {[%clk 0:04:32.4]} 8. Rxh5 {[%clk 0:04:49.4]} 8...
gxh5 {[%clk 0:04:31.2]} 9. Qxh5 {[%clk 0:04:48.9]} 9... a6 {[%clk 0:04:22.9]}
10. Bg5 {[%clk 0:04:44.5]} 10... Bf6 {[%clk 0:04:08.5]} 11. Nf3 {[%clk
0:04:42.6]} 11... Nd4 {[%clk 0:04:02.7]} 12. O-O-O {[%clk 0:04:30.7]} 12... Nxf3
{[%clk 0:03:59.3]} 13. Bxf6 {[%clk 0:04:27.6]} 13... Qxf6 {[%clk 0:03:58.3]} 14.
gxf3 {[%clk 0:04:25.3]} 14... b5 {[%clk 0:03:56.4]} 15. Bxb5 {[%clk 0:04:14.8]}
15... axb5 {[%clk 0:03:52.5]} 16. Nxb5 {[%clk 0:04:14.3]} 16... Rb8 {[%clk
0:03:49.7]} 17. Nd6+ {[%clk 0:04:02.8]} 17... Ke7 {[%clk 0:03:45.4]} 18. e5
{[%clk 0:04:01.7]} 18... Qf4+ {[%clk 0:03:40.5]} 19. Kb1 {[%clk 0:03:58.2]}
19... Rg8 {[%clk 0:03:32.6]} 20. Re1 {[%clk 0:03:51.1]} 20... Bb7 {[%clk
0:03:26.6]} 21. Qxh7 {[%clk 0:03:35.3]} 21... Bxf3 {[%clk 0:03:21.4]} 22. b3
{[%clk 0:03:15.1]} 22... Bd5 {[%clk 0:03:18.6]} 23. Re2 {[%clk 0:02:28.4]} 23...
Rh8 {[%clk 0:03:10.6]} 24. Qg7 {[%clk 0:02:20.5]} 24... Rbg8 {[%clk 0:03:09.2]}
25. Qf6+ {[%clk 0:02:03.4]} 25... Qxf6 {[%clk 0:03:05.9]} 26. exf6+ {[%clk
0:01:57.3]} 26... Kxd6 {[%clk 0:03:05.8]} 27. c4 {[%clk 0:01:55.4]} 27... Bc6
{[%clk 0:03:02.4]} 28. Kc2 {[%clk 0:01:54.3]} 28... Rg6 {[%clk 0:03:01.3]} 29.
Kc3 {[%clk 0:01:50.8]} 29... Rxf6 {[%clk 0:03:00.1]} 30. b4 {[%clk 0:01:49.4]}
30... cxb4+ {[%clk 0:02:56]} 31. axb4 {[%clk 0:01:47.8]} 31... Rh3 {[%clk
0:02:55.3]} 32. b5 {[%clk 0:01:45.8]} 32... Rff3 {[%clk 0:02:51.6]} 33. bxc6
{[%clk 0:01:43.2]} 33... Rxd3+ {[%clk 0:02:50.5]} 34. Kb4 {[%clk 0:01:37.5]}
34... dxc6 {[%clk 0:02:49.4]} 35. c5+ {[%clk 0:01:35.5]} 35... Kd5 {[%clk
0:02:47.3]} 36. Rb2 {[%clk 0:01:30.8]} 36... e5 {[%clk 0:02:44.6]} 37. Ka5
{[%clk 0:01:22.8]} 37... Ra3+ {[%clk 0:02:41.5]} 38. Kb4 {[%clk 0:01:21.4]}
38... Ra8 {[%clk 0:02:39.9]} 39. Rd2+ {[%clk 0:01:17.7]} 39... Ke4 {[%clk
0:02:38.4]} 40. Rd6 {[%clk 0:01:13.3]} 40... Rb8+ {[%clk 0:02:36.5]} 41. Kc4
{[%clk 0:01:12.1]} 41... Rhb3 {[%clk 0:02:27.4]} 42. f3+ {[%clk 0:01:03.1]}
42... Rxf3 {[%clk 0:02:05.1]} 43. Rxc6 {[%clk 0:00:36.9]} 43... Rf1 {[%clk
0:02:02.2]} 44. Rb6 {[%clk 0:00:27.6]} 44... Rc1+ {[%clk 0:01:59.7]} 45. Kb5
{[%clk 0:00:25.8]} 45... Rb1+ {[%clk 0:01:58.1]} 46. Kc6 {[%clk 0:00:23.8]}
46... R8xb6+ {[%clk 0:01:57.2]} 47. cxb6 {[%clk 0:00:22.7]} 47... f5 {[%clk
0:01:56.7]} 48. b7 {[%clk 0:00:21.3]} 48... Rxb7 {[%clk 0:01:53.6]} 0-1